[Event "XLIV Sevilla Open 2019"]
[Site "Sevilla"]
[Date "2019.01.16"]
[Round "6"]
[White "Blanco Acevedo, Cristobal Jose"]
[Black "Clemente Llamero, Roberto"]
[Result "1-0"]
[ECO "D45"]
[WhiteElo "2397"]
[BlackElo "2101"]
[Annotator "NA"]
[PlyCount "43"]
[EventDate "2019.01.11"]
[EventType "swiss"]
[EventCountry "ESP"]
[SourceTitle "playchess.com"]
[Source "ChessBase"]
[SourceQuality "1"]
[TimeControl "5400+30"]

1. Nf3 {[%emt 0:02:37]} d5 2. d4 {[%emt 0:00:30]} Nf6 3. c4 {[%emt 0:00:30]} c6 4. e3 {[%emt 0:00:30]} e6 5. Nc3 {[%emt 0:00:30]} Nbd7 6. Qc2 {[%emt 0:00:30]} Bd6 7. g4 {[%emt 0:00:30]} Nxg4 8. Rg1 {[%emt 0:00:30]} Qf6 9. Rxg4 {[%emt 0:00:30]} Qxf3 10. Rxg7 {[%emt 0:00:30]} Bxh2 11. e4 {[%emt 0:00:30]} dxe4 12. Nxe4 {[%emt 0:00:30]} h6 13. Be3 {[%emt 0:00:30]} Bc7 14. Bg2 {[%emt 0:00:30]} Qf5 15. O-O-O {[%emt 0:00:30]} Nf6 16. d5 {[%emt 0:00:30]} Bd7 17. d6 {[%emt 0:00:30]} Bb6 18. c5 {[%emt 0:00:30]} Bd8 19. Rg1 {[%emt 0:00:30]} Kf8 20. Bh3 {[%emt 0:00:30]} Qh5 21. Nxf6 {[%emt 0:00:30]} Bxf6 22. Qh7 {[%emt 0:00:30]} 1-0

[Event "XLIV Sevilla Open 2019"]
[Site "Sevilla"]
[Date "2019.01.16"]
[Round "6"]
[White "Polivanov, Anatoliy"]
[Black "Li, Xueyi"]
[Result "1/2-1/2"]
[ECO "D45"]
[WhiteElo "2374"]
[BlackElo "2194"]
[Annotator "NA"]
[PlyCount "46"]
[EventDate "2019.01.11"]
[EventType "swiss"]
[EventCountry "ESP"]
[SourceTitle "playchess.com"]
[Source "ChessBase"]
[SourceQuality "1"]
[TimeControl "5400+30"]

1. d4 {[%emt 0:00:00]} d5 {[%emt 0:00:00]} 2. c4 {[%emt 0:00:00]} c6 {[%emt 0:00:18]} 3. Nf3 {[%emt 0:00:00]} e6 {[%emt 0:00:59]} 4. e3 {[%emt 0:00:10]} Nf6 {[%emt 0:01:15]} 5. Nc3 {[%emt 0:00:07]} Nbd7 {[%emt 0:00:07]} 6. Qc2 {[%emt 0:00:25]} Bd6 {[%emt 0:00:27]} 7. g4 {[%emt 0:00:08]} Nxg4 {[%emt 0:07:42]} 8. Rg1 {[%emt 0:00:30]} Qf6 {[%emt 0:00:17]} 9. Rxg4 {[%emt 0:00:44]} Qxf3 {[%emt 0:00:08]} 10. Rxg7 {[%emt 0:01:33]} Nf6 {[%emt 0:00:11]} 11. Bg2 {[%emt 0:02:52]} Qh5 {[%emt 0:01:41]} 12. e4 {[%emt 0:00:05]} Nxe4 {[%emt 0:03:41]} 13. Bxe4 {[%emt 0:15:59]} dxe4 {[%emt 0:00:57]} 14. Nxe4 {[%emt 0:00:12]} Be7 {[%emt 0:06:57]} 15. Bg5 {[%emt 0:08:05]} Bb4+ {[%emt 0:00:33]} 16. Kf1 {[%emt 0:10:25]} Qh3+ {[%emt 0:00:25]} 17. Ke2 {[%emt 0:01:44]} e5 {[%emt 0:08:13]} 18. Rg1 {[%emt 0:12:12]} Bg4+ {[%emt 0:02:11]} 19. Rxg4 {[%emt 0:00:06]} Qxg4+ {[%emt 0:00:04]} 20. Kf1 {[%emt 0:00:27]} Qh3+ {[%emt 0:00:07]} 21. Kg1 {[%emt 0:04:50]} Qg4+ {[%emt 0:05:37]} 22. Kf1 {[%emt 0:08:20]} Qh3+ {[%emt 0:05:15]} 23. Kg1 {[%emt 0:00:16]} Qg4+ {[%emt 0:15:02]} 1/2-1/2

[Event "XLIV Sevilla Open 2019"]
[Site "Sevilla"]
[Date "2019.01.16"]
[Round "6"]
[White "Cuellar Montes, Alejandro"]
[Black "Pogorelov, Ruslan"]
[Result "0-1"]
[ECO "E41"]
[WhiteElo "2064"]
[BlackElo "2357"]
[Annotator "NA"]
[PlyCount "76"]
[EventDate "2019.01.11"]
[EventType "swiss"]
[EventCountry "ESP"]
[SourceTitle "playchess.com"]
[Source "ChessBase"]
[SourceQuality "1"]
[TimeControl "5400+30"]

1. d4 {[%emt 0:00:00]} Nf6 {[%emt 0:00:11]} 2. c4 {[%emt 0:00:00]} e6 {[%emt 0:00:04]} 3. Nc3 {[%emt 0:00:00]} Bb4 {[%emt 0:00:07]} 4. e3 {[%emt 0:00:00]} Bxc3+ {[%emt 0:01:14]} 5. bxc3 {[%emt 0:00:03]} c5 {[%emt 0:00:41]} 6. Bd3 {[%emt 0:00:14]} d6 {[%emt 0:00:08]} 7. Nf3 {[%emt 0:01:13]} Nc6 {[%emt 0:00:11]} 8. O-O {[%emt 0:03:19]} O-O {[%emt 0:00:46]} 9. e4 {[%emt 0:01:50]} e5 {[%emt 0:00:09]} 10. d5 {[%emt 0:00:25]} Ne7 {[%emt 0:00:08]} 11. Ne1 {[%emt 0:01:21]} Ng6 {[%emt 0:00:57]} 12. g3 {[%emt 0:01:05]} Bh3 {[%emt 0:00:40]} 13. Ng2 {[%emt 0:00:13]} Ne8 {[%emt 0:16:20]} 14. Qc2 {[%emt 0:13:17]} Qd7 {[%emt 0:00:58]} 15. Re1 {[%emt 0:04:21]} f5 {[%emt 0:00:54]} 16. exf5 {[%emt 0:00:14]} Bxf5 {[%emt 0:00:16]} 17. Bxf5 {[%emt 0:01:21]} Rxf5 {[%emt 0:05:34]} 18. Rb1 {[%emt 0:08:40]} Rf7 {[%emt 0:00:39]} 19. Qe2 {[%emt 0:13:13]} Nf6 {[%emt 0:01:22]} 20. Bg5 {[%emt 0:09:43]} Raf8 {[%emt 0:00:40]} 21. f3 {[%emt 0:03:30]} Ne8 {[%emt 0:11:20]} 22. Rf1 {[%emt 0:01:17]} b6 {[%emt 0:02:44]} 23. Rbe1 {[%emt 0:02:15]} Qh3 {[%emt 0:04:43]} 24. Bd2 {[%emt 0:13:12]} Nf6 {[%emt 0:07:37]} 25. Ne3 {[%emt 0:03:36]} h6 {[%emt 0:07:21]} 26. Qg2 {[%emt 0:04:13]} Qd7 {[%emt 0:00:25]} 27. Bc1 {[%emt 0:01:43]} Nh7 {[%emt 0:02:06]} 28. Qc2 {[%emt 0:02:40]} Ne7 {[%emt 0:00:18]} 29. Qe2 {[%emt 0:07:35]} Ng5 {[%emt 0:03:26]} 30. f4 {[%emt 0:03:36]} exf4 {[%emt 0:00:09]} 31. gxf4 {[%emt 0:00:25]} Nh3+ {[%emt 0:01:04]} 32. Kh1 {[%emt 0:00:04]} Nxf4 {[%emt 0:01:25]} 33. Qg4 {[%emt 0:01:21]} Qxg4 {[%emt 0:00:19]} 34. Nxg4 {[%emt 0:00:04]} Neg6 {[%emt 0:00:22]} 35. Rg1 {[%emt 0:00:56]} Kh7 {[%emt 0:01:04]} 36. Re4 {[%emt 0:00:30]} Nh3 {[%emt 0:07:23]} 37. Rg3 {[%emt 0:00:29]} Rf1+ {[%emt 0:00:20]} 38. Kg2 {[%emt 0:00:12]} Rxc1 {[%emt 0:00:12]} 0-1